bitfinex-derivatives/quotes_SOLF0:USTF0_20250522
["timestamp","ask_amount","ask_price","bid_price","bid_amount"]
[1747884454787,5.7142,174.96,174.92,5.7151]
[1747884455196,5.75720855,174.96,174.93,5.7148]
[1747884455383,5.75720855,174.96,174.92,0.03925225]
[1747884455790,5.75720855,174.96,174.92,5.75445225]
[1747884455992,5.7143,174.95,174.92,5.75445225]
[1747884456290,0.04300855,174.96,174.92,5.75445225]
[1747884456489,5.75710855,174.96,174.93,5.7149]
[1747884457890,0.04300855,174.96,174.93,5.7149]
[1747884458292,0.04300855,174.96,174.92,0.03925225]
[1747884459995,0.04300855,174.96,174.93,5.7147]
[1747884460390,0.04300855,174.96,174.92,0.03925225]
[1747884460790,5.7146,174.95,174.92,0.03925225]
[1747884462295,5.7146,174.94,174.92,0.03925225]
[1747884463194,5.7144,174.95,174.92,0.03925225]
[1747884465399,5.7147,174.94,174.92,0.03925225]
[1747884467396,5.715,174.93,174.92,0.03925225]
[1747884469205,5.7147,174.94,174.92,0.03925225]
[1747884472709,5.7144,174.95,174.92,0.03925225]
[1747884473008,0.04300855,174.96,174.92,5.75445225]
[1747884473205,0.04300855,174.96,174.92,0.03925225]
[1747884473403,5.75710855,174.96,174.92,0.03925225]
[1747884473600,0.04300855,174.96,174.92,0.03925225]
[1747884474009,0.04300855,174.96,174.93,5.7147]
[1747884475913,0.04300855,174.96,174.95,5.7143]
[1747884476712,0.04300855,174.96,174.94,5.7145]
[1747884477211,0.04300855,174.96,174.95,5.7143]
[1747884479314,0.04300855,174.96,174.94,5.7145]
[1747884479518,0.04300855,174.96,174.92,0.03925225]
[1747884480110,0.04300855,174.96,174.93,5.7147]
[1747884480517,0.04300855,174.96,174.92,0.03925225]
[1747884481412,5.7144,174.95,174.92,0.03925225]
[1747884481619,0.04300855,174.96,174.92,0.03925225]
[1747884482913,122.9,174.95,174.92,0.03925225]
[1747884483117,128.8709,174.95,174.92,0.03925225]
[1747884483619,5.7149,174.94,174.92,0.03925225]
[1747884484010,3.9758,174.95,174.92,0.03925225]
[1747884484217,0.04300855,174.96,174.92,0.03925225]
[1747884484612,0.04300855,174.96,174.92,5.75425225]
[1747884484814,0.04300855,174.96,174.92,0.03925225]
[1747884485822,0.04300855,174.96,174.92,5.75445225]
[1747884486221,0.04300855,174.96,174.92,0.03925225]
[1747884487618,0.04300855,174.96,174.92,5.75445225]
[1747884488819,0.04300855,174.96,174.92,0.03925225]
[1747884489016,5.75710855,174.96,174.92,0.03925225]
[1747884489516,128.65710855,174.96,174.92,0.03925225]
[1747884491518,122.94300855,174.96,174.92,0.03925225]
[1747884492816,5.715,174.93,174.92,0.03925225]
[1747884499836,5.715,174.93,174.92,5.225e-05]
[1747884500329,10.76484274,174.95,174.84,5.7179]
[1747884500536,1.9232,174.92,174.84,5.7179]
[1747884500724,121.98,174.91,174.84,5.7179]
[1747884501230,5.75990353,174.89,174.86,0.036728]
[1747884501728,0.04360353,174.89,174.86,0.036728]
[1747884502428,0.04360353,174.89,174.88,5.7166]
[1747884503628,121.98,174.95,174.88,5.7166]
[1747884503931,121.98,174.95,174.92,5.715]
[1747884504323,7.11093109,174.97,174.9,6.64824274]
[1747884504523,7.11093109,174.97,174.92,6.64824274]
[1747884504727,0.03721576,174.96,174.95,5.714]
[1747884516338,1.576e-05,174.96,174.95,5.714]
[1747884518143,123.9021,175.06,175.01,5.7122]
[1747884518531,128.62,175.1,174.96,128.62]
[1747884518834,128.62,175.1,174.97,10.80364274]
[1747884519040,128.62,175.1,175.01,0.04132662]
[1747884520355,5.7107,175.07,175.01,5.75362662]
[1747884520755,128.62,175.1,175.01,5.75362662]
[1747884521057,5.7102,175.08,175.01,5.75362662]
[1747884521850,5.7102,175.08,175.02,5.712]
[1747884522259,5.7097,175.09,175.01,0.04132662]
[1747884522663,5.7097,175.09,175.03,5.7116]
[1747884523352,128.62,175.1,175.02,5.712]
[1747884523651,128.62,175.1,175.01,0.04132662]
[1747884523853,5.7107,175.07,175.01,0.04132662]
[1747884524058,5.7107,175.07,175.02,5.7119]
[1747884524964,5.7103,175.08,175.03,5.7117]
[1747884525163,128.62,175.1,175.04,0.04038878]
[1747884525561,5.7103,175.08,175.04,0.04038878]
[1747884525861,128.62,175.1,175.04,0.04038878]
[1747884526763,6.64824274,175.09,175.04,0.04038878]
[1747884526958,5.711,175.05,175.04,0.04038878]
[1747884527863,5.7108,175.06,175.04,0.04038878]
[1747884528063,6.64824274,175.09,175.04,0.04038878]
[1747884528563,128.62,175.1,175.04,0.04038878]
[1747884529157,6.64824274,175.09,175.04,0.04038878]
[1747884529567,5.711,175.05,175.04,0.04038878]
[1747884530868,140.811,175.05,175.04,0.04038878]
[1747884531165,5.7127,175.0,174.96,128.62]
[1747884531367,137.0698,175.05,174.95,5.7143]
[1747884531554,1.9706,175.04,174.93,4.96785705]
[1747884531759,6.64824274,175.03,174.93,2.97735705]
[1747884531960,6.64824274,175.03,174.94,5.7145]
[1747884532161,0.03971935,175.0,174.96,0.0386506]
[1747884532360,135.13971935,175.0,174.96,0.0386506]
[1747884532561,135.13971935,175.0,174.96,5.7525506]
[1747884532766,135.13971935,175.0,174.96,0.0386506]
[1747884533367,5.7132,174.99,174.96,0.0386506]
[1747884534668,5.7134,174.98,174.96,0.0386506]
[1747884535471,140.85261935,175.0,174.96,0.0386506]
[1747884536167,5.7131,174.99,174.96,0.0386506]
[1747884537567,5.7133,174.98,174.96,0.0386506]
[1747884538070,5.7131,174.99,174.96,0.0386506]
[1747884538269,5.7131,174.99,174.96,5.7525506]
[1747884538471,135.13971935,175.0,174.96,0.0386506]
[1747884540370,5.7136,174.97,174.96,0.0386506]
[1747884540672,0.03971935,175.0,174.96,0.0386506]
[1747884540873,0.03971935,175.0,174.99,5.713]
[1747884547979,0.03971935,175.0,174.98,5.7133]
[1747884548776,0.03971935,175.0,174.96,1.04220765]
[1747884549173,0.03971935,175.0,174.97,5.7134]
[1747884549984,5.75241935,175.0,174.96,6.75610765]
[1747884550180,0.03971935,175.0,174.96,1.04220765]
[1747884550582,0.03971935,175.0,174.96,5.7523506]
[1747884551876,0.03971935,175.0,174.97,5.7136]
[1747884552580,0.03971935,175.0,174.96,0.0386506]
[1747884553581,0.03971935,175.0,174.97,5.7134]
[1747884555182,0.03971935,175.0,174.96,0.0386506]
[1747884555582,0.03971935,175.0,174.98,5.713]
[1747884555878,0.03971935,175.0,174.96,0.0386506]
[1747884558088,0.03971935,175.0,174.98,5.7131]
[1747884559786,0.03971935,175.0,174.99,5.713]
[1747884560489,0.03971935,175.0,174.96,0.0386506]
[1747884561299,5.75251935,175.0,174.96,0.0386506]
[1747884561781,5.7133,174.99,174.96,0.0386506]
[1747884562784,5.7136,174.98,174.96,0.0386506]
[1747884563194,0.03971935,175.0,174.96,0.0386506]
[1747884563386,0.03971935,175.0,174.97,5.7136]
[1747884563587,0.03971935,175.0,174.96,0.0386506]
[1747884564285,5.75261935,175.0,174.96,0.0386506]
[1747884565092,0.03971935,175.0,174.96,0.0386506]
[1747884565692,0.03971935,175.0,174.98,5.7131]
[1747884565891,0.03971935,175.0,174.96,0.0386506]
[1747884567493,5.75261935,175.0,174.96,5.7525506]
[1747884567795,0.03971935,175.0,174.96,0.0386506]
[1747884568190,5.7132,174.99,174.96,0.0386506]
[1747884569394,5.7132,174.99,174.96,5.7526506]
[1747884569994,5.7132,174.99,174.96,0.0386506]
[1747884570394,5.75241935,175.0,174.96,0.0386506]
[1747884570994,0.03971935,175.0,174.96,0.0386506]
[1747884571891,5.7134,174.98,174.96,0.0386506]
[1747884572089,0.03971935,175.0,174.96,0.0386506]
[1747884572290,5.75261935,175.0,174.96,0.0386506]
[1747884574393,0.03971935,175.0,174.97,5.7136]
[1747884574700,0.03971935,175.0,174.96,0.0386506]
[1747884575198,0.03971935,175.0,174.97,5.7136]
[1747884575794,0.03971935,175.0,174.98,5.7133]
[1747884576498,0.03971935,175.0,174.97,5.7136]
[1747884577399,5.75241935,175.0,174.96,5.7525506]
[1747884579298,5.75241935,175.0,174.97,5.7136]
[1747884579501,0.03971935,175.0,174.97,5.7136]
[1747884581201,5.75241935,175.0,174.97,5.7136]
[1747884582200,0.03971935,175.0,174.96,0.0386506]
[1747884582803,5.713,174.99,174.96,0.0386506]
[1747884583694,5.713,174.99,174.96,5.7525506]
[1747884584007,5.75241935,175.0,174.96,5.7525506]
[1747884585202,0.03971935,175.0,174.96,0.0386506]
[1747884585705,5.75241935,175.0,174.97,5.7133]
[1747884585903,0.03971935,175.0,174.96,0.0386506]
[1747884587203,0.03971935,175.0,174.99,5.713]
[1747884595804,1.935e-05,175.0,174.99,5.713]
[1747884596104,5.71,175.09,175.04,5.7112]
[1747884596303,293.92948842,175.1,175.04,5.7112]
[1747884596908,293.92948842,175.1,175.05,0.04037748]
[1747884597106,299.63888842,175.1,175.05,5.75107748]
[1747884597309,9.18523109,175.12,175.05,0.04037748]
[1747884597809,14.89403109,175.12,175.07,5.7101]
[1747884598210,14.89403109,175.12,175.05,0.04037748]
[1747884598515,14.89403109,175.12,175.07,5.7101]
[1747884598715,9.18523109,175.12,175.05,0.04037748]
[1747884599411,9.18523109,175.12,175.06,5.7106]
[1747884599610,2.0743,175.12,175.06,5.7106]
[1747884600213,2.0743,175.12,175.05,0.04037748]
[1747884600414,5.7099,175.09,175.05,0.04037748]
[1747884600811,2.0743,175.12,175.05,0.04037748]
[1747884601010,6.64824274,175.11,175.05,0.04037748]
[1747884601211,108.60102414,175.1,175.02,1.00355705]
[1747884601417,5.7111,175.05,175.02,1.00355705]
[1747884601607,142.26,175.07,175.02,1.00355705]
[1747884602013,5.7111,175.05,175.02,1.00355705]
[1747884602214,5.75285943,175.05,175.02,1.04402703]
[1747884602519,5.75285943,175.05,175.02,0.04046998]
[1747884603208,0.04175943,175.05,175.02,0.04046998]
[1747884603609,0.04175943,175.05,175.04,5.7113]
[1747884604217,0.04175943,175.05,175.02,5.75216998]
[1747884604517,0.04175943,175.05,175.02,0.04046998]
[1747884605214,0.04175943,175.05,175.04,5.7113]
[1747884605412,0.04175943,175.05,175.02,0.04046998]
[1747884608020,0.04175943,175.05,175.04,5.7113]
[1747884609322,548.0,175.29,175.02,6.68871272]
[1747884609512,142.24,175.18,175.05,6.64824274]
[1747884609820,152.95302338,175.19,175.05,6.64824274]
[1747884610005,152.95302338,175.19,175.08,6.64824274]
[1747884610206,152.95302338,175.19,175.08,148.88824274]
[1747884610523,158.65972338,175.19,175.13,5.7082]
[1747884610716,158.65972338,175.19,175.11,0.03849878]
[1747884610915,10.71302338,175.19,175.11,6.68674152]
[1747884611117,10.71302338,175.19,175.14,6.64824274]
[1747884611320,10.71302338,175.19,175.14,148.86824274]
[1747884611626,5.7051,175.24,175.19,5.7063]
[1747884611814,5.7051,175.24,175.2,0.03704185]
[1747884612019,142.22,175.25,175.2,0.03704185]
[1747884612221,5.7049,175.24,175.2,0.03704185]
[1747884612516,142.22,175.25,175.2,0.03704185]
[1747884613222,5.7054,175.23,175.2,0.03704185]
[1747884613521,142.22,175.25,175.2,0.03704185]
[1747884614415,5.7058,175.21,175.2,0.03704185]
[1747884614617,142.22,175.25,175.2,0.03704185]
[1747884614916,5.7058,175.21,175.2,0.03704185]
[1747884616219,7.40723714,175.32,175.2,0.03704185]
[1747884616426,6.0063,175.31,175.24,0.03760767]
[1747884616920,6.64824274,175.29,175.24,0.03760767]
[1747884617120,142.18,175.28,175.24,0.03760767]
[1747884617820,5.7045,175.25,175.24,0.03760767]
[1747884618122,0.03843353,175.26,175.16,5.7073]
[1747884618325,5.7057,175.22,175.16,5.7073]
[1747884618525,142.18,175.28,175.16,5.7073]
[1747884619322,0.03861059,175.24,175.2,0.03683982]
[1747884619821,5.7058,175.21,175.2,0.03683982]
[1747884620227,142.18,175.22,175.1,144.1315]
[1747884620430,5.7074,175.17,175.12,5.7085]
[1747884620724,142.18,175.22,175.1,144.1315]
[1747884621227,0.04399079,175.18,175.14,0.03947752]
[1747884621424,0.04399079,175.18,175.15,5.7075]
[1747884621727,0.04399079,175.18,175.14,0.03947752]
[1747884622121,0.04399079,175.18,175.14,5.74747752]
[1747884623628,5.7074,175.17,175.14,0.03947752]
[1747884624427,5.75079079,175.18,175.14,0.03947752]
[1747884624923,5.75079079,175.18,175.14,5.74757752]
[1747884625129,5.7071,175.17,175.14,0.03947752]
[1747884625426,0.04399079,175.18,175.14,0.03947752]
[1747884625723,5.7077,175.16,175.14,0.03947752]
[1747884626625,5.7072,175.17,175.14,0.03947752]
[1747884626830,0.04399079,175.18,175.14,0.03947752]
[1747884627330,0.04399079,175.18,175.17,5.7071]
[1747884628125,0.04399079,175.18,175.16,5.7074]
[1747884628527,0.04399079,175.18,175.15,142.16]
[1747884628728,0.04399079,175.18,175.16,5.7074]
[1747884629128,0.04399079,175.18,175.15,142.16]
[1747884629432,0.04399079,175.18,175.17,5.7071]
[1747884631422,0.04399079,175.18,175.16,5.7073]
[1747884633034,0.04399079,175.18,175.17,5.7071]
[1747884635739,5.7049,175.24,175.2,5.7059]
[1747884636133,142.16,175.27,175.2,5.7059]
[1747884636540,142.16,175.27,175.21,5.7058]
[1747884636739,0.03145962,175.26,175.22,0.03615233]
[1747884637235,5.7051,175.23,175.22,0.03615233]
[1747884637536,0.03145962,175.26,175.15,142.16]
[1747884637737,142.16,175.27,175.15,142.16]
[1747884638437,0.03839299,175.23,175.19,0.04106916]
[1747884638740,140.5,175.22,175.19,0.04106916]
[1747884638939,142.4726,175.22,175.19,0.04106916]
[1747884639236,5.7061,175.2,175.19,0.04106916]
[1747884646641,5.7059,175.21,175.19,0.04106916]
[1747884647043,140.5,175.22,175.19,0.04106916]
[1747884647341,5.7061,175.21,175.19,0.04106916]
[1747884647542,140.5,175.22,175.19,0.04106916]
[1747884649842,5.7061,175.2,175.19,0.04106916]
[1747884652850,5.7059,175.21,175.19,0.04106916]
[1747884653050,140.5,175.22,175.19,0.04106916]
[1747884654049,146.2056,175.22,175.19,0.04106916]
[1747884655351,140.5,175.22,175.19,0.04106916]
[1747884655949,5.7061,175.2,175.19,0.04106916]
[1747884656353,140.5,175.22,175.19,0.04106916]
[1747884657550,5.706,175.21,175.19,0.04106916]
[1747884658051,140.5,175.22,175.19,0.04106916]
[1747884658452,5.7061,175.2,175.19,0.04106916]
[1747884658847,140.5,175.22,175.19,0.04106916]
[1747884659048,5.706,175.21,175.19,0.04106916]
[1747884659348,140.5,175.22,175.19,0.04106916]
[1747884660257,5.7061,175.2,175.19,0.04106916]
[1747884662359,5.7061,175.2,175.19,6.916e-05]
[1747884663057,5.7059,175.21,175.19,6.916e-05]
[1747884664559,5.7057,175.22,175.19,6.916e-05]
[1747884665659,0.03839299,175.23,175.19,6.916e-05]
[1747884666455,0.03839299,175.23,175.21,5.7057]
[1747884669062,0.03839299,175.23,175.19,5.70626916]
[1747884669362,0.03839299,175.23,175.19,6.916e-05]
[1747884669867,0.03839299,175.23,175.2,5.7059]
[1747884671463,0.03839299,175.23,175.19,6.916e-05]
[1747884672063,5.7061,175.2,175.19,6.916e-05]
[1747884672769,138.37839299,175.23,175.19,6.916e-05]
[1747884673568,5.7058,175.21,175.19,6.916e-05]
[1747884674370,144.08379299,175.23,175.19,6.916e-05]
[1747884674568,0.03839299,175.23,175.21,5.7058]
[1747884674770,0.03839299,175.23,175.19,6.916e-05]
[1747884675257,0.03839299,175.23,175.2,5.7059]
[1747884676664,0.03839299,175.23,175.21,5.7058]
[1747884677272,0.03839299,175.23,175.22,5.7055]
[1747884677674,0.03839299,175.23,175.19,6.916e-05]
[1747884678183,0.03839299,175.23,175.22,5.7055]
[1747884679266,7.11093109,175.31,175.22,138.34]
[1747884679467,12.81373109,175.31,175.24,6.60174742]
[1747884680068,7.11093109,175.31,175.24,6.60174742]
[1747884680370,0.03849381,175.29,175.26,0.04180445]
[1747884680775,0.03849381,175.29,175.27,5.7036]
[1747884680980,0.03849381,175.29,175.26,0.04180445]
[1747884681385,0.03849381,175.29,175.28,5.7035]
[1747884682784,0.03849381,175.29,175.26,5.74590445]
[1747884682985,0.03849381,175.29,175.26,0.04180445]
[1747884683366,5.7038,175.27,175.26,0.04180445]
[1747884690972,5.7036,175.28,175.26,0.04180445]
[1747884691280,0.03849381,175.29,175.26,0.04180445]
[1747884691483,5.7038,175.27,175.26,0.04180445]
[1747884692780,5.7036,175.28,175.26,0.04180445]
[1747884692981,0.03849381,175.29,175.26,0.04180445]
[1747884693478,5.7038,175.28,175.26,0.04180445]
[1747884693978,5.74169381,175.29,175.26,0.04180445]
[1747884694685,5.7035,175.28,175.27,1.42647794]
[1747884695182,0.03849381,175.29,175.27,1.42647794]
[1747884695387,5.74179381,175.29,175.27,1.42647794]
[1747884695884,0.03849381,175.29,175.27,1.42647794]
[1747884696383,0.03849381,175.29,175.26,5.74570445]
[1747884697182,0.03849381,175.29,175.26,0.04180445]
[1747884697685,0.03849381,175.29,175.26,5.74570445]
[1747884699487,0.03849381,175.29,175.27,1.42635453]
[1747884700387,0.03849381,175.29,175.26,5.74570445]
[1747884701780,5.74179381,175.29,175.26,0.04180445]
[1747884702088,0.03849381,175.29,175.26,0.04180445]
[1747884702282,5.7035,175.28,175.26,0.04180445]
[1747884702484,0.03849381,175.29,175.26,0.04180445]
[1747884702790,5.74169381,175.29,175.26,0.04180445]
[1747884703094,0.03849381,175.29,175.2,1.00355705]
[1747884703295,5.7058,175.21,175.2,1.00355705]
[1747884703594,134.16,175.25,175.2,1.00355705]
[1747884704184,0.04354541,175.24,175.21,0.03892985]
[1747884704985,0.04354541,175.24,175.21,6.64067727]
[1747884705191,0.04354541,175.24,175.23,5.7051]
[1747884705388,0.04354541,175.24,175.22,1.42681007]
[1747884706192,0.04354541,175.24,175.21,0.03892985]
[1747884706692,0.04354541,175.24,175.21,5.74472985]
[1747884706882,0.04354541,175.24,175.21,0.03892985]
[1747884708788,0.04354541,175.24,175.22,1.42687059]
[1747884709194,0.04354541,175.24,175.22,7.13227059]
[1747884709381,0.04354541,175.24,175.22,1.42687059]
[1747884710296,0.04354541,175.24,175.23,1.42687059]
[1747884710597,0.04354541,175.24,175.23,7.13197059]
[1747884711188,0.04354541,175.24,175.23,1.42687059]
[1747884712094,0.04354541,175.24,175.23,7.13197059]
[1747884715093,0.04354541,175.24,175.23,1.42687059]
[1747884717206,0.04354541,175.24,175.23,7.13197059]
[1747884717700,0.04354541,175.24,175.23,1.42687059]
[1747884721307,0.04354541,175.24,175.23,7.13197059]
[1747884721806,0.04354541,175.24,175.23,1.42687059]
[1747884726909,5.74834541,175.24,175.23,1.42687059]
[1747884727808,5.7055,175.22,175.21,0.03892985]
[1747884731115,120.74174742,175.22,175.12,1.00355705]
[1747884731302,6.60174742,175.19,175.12,1.00355705]
[1747884731508,140.24,175.18,175.09,1.33828234]
[1747884731706,5.7094,175.1,175.09,1.33828234]
[1747884732605,5.7094,175.1,175.09,8.234e-05]
[1747884732806,0.04241206,175.11,175.05,2.01942342]
[1747884733012,6.60174742,175.1,175.05,2.01942342]
[1747884733920,6.60174742,175.1,175.06,0.04219913]
[1747884734115,6.60174742,175.1,175.05,2.01942342]
[1747884734418,5.7128,175.0,174.97,2.0182]
[1747884734619,140.28,175.04,174.97,2.0182]
[1747884734811,5.712,175.02,174.97,2.0182]
[1747884735120,3.9842,175.13,174.98,6.63857546]
[1747884735415,108.48,175.11,174.99,5.7127]
[1747884735917,115.08174742,175.11,174.98,5.713]
[1747884736119,115.08174742,175.11,175.03,0.0400425]
[1747884736120,0.03674584,175.06,175.03,0.0400425]
[1747884737615,137.92,175.05,175.03,0.0400425]
[1747884737811,143.6313,175.05,175.03,0.0400425]
[1747884738016,137.92,175.05,175.03,0.0400425]
[1747884740730,0.03674584,175.06,175.03,0.0400425]
[1747884745145,0.03674584,175.06,175.05,5.711]
[1747884751535,0.03674584,175.06,175.03,0.0400425]
[1747884751940,5.74754584,175.06,175.03,0.0400425]
[1747884752139,0.03674584,175.06,175.03,0.0400425]
[1747884752636,0.03674584,175.06,175.04,5.7113]
[1747884753344,0.03674584,175.06,175.03,0.0400425]
[1747884754050,0.03674584,175.06,175.03,5.7516425]
[1747884754246,0.03674584,175.06,175.03,0.0400425]
[1747884754448,5.74764584,175.06,175.03,0.0400425]
[1747884754745,0.03674584,175.06,175.03,0.0400425]
[1747884754947,5.7113,175.04,175.03,0.0400425]
[1747884756847,0.03674584,175.06,175.03,0.0400425]
[1747884757645,0.03674584,175.06,175.04,5.7111]
[1747884757840,0.03674584,175.06,175.03,0.0400425]
[1747884758243,0.03674584,175.06,175.03,5.7516425]
[1747884758450,0.03674584,175.06,175.03,0.0400425]
[1747884759153,0.03674584,175.06,175.04,5.7113]
[1747884759355,0.03674584,175.06,175.03,0.0400425]
[1747884761055,5.74744584,175.06,175.03,0.0400425]
[1747884761248,0.03674584,175.06,175.03,0.0400425]
[1747884761554,0.03674584,175.06,175.04,5.7113]
[1747884761759,0.03674584,175.06,175.03,0.0400425]
[1747884762252,0.03674584,175.06,175.05,5.711]
[1747884762760,0.03674584,175.06,175.03,0.0400425]
[1747884764455,5.7113,175.05,175.03,0.0400425]
[1747884764655,0.03674584,175.06,175.03,0.0400425]
[1747884765355,5.7113,175.04,175.03,0.0400425]
[1747884770860,5.7111,175.05,175.03,0.0400425]
[1747884771762,5.7113,175.04,175.03,0.0400425]
[1747884780370,5.711,175.05,175.03,0.0400425]
[1747884780665,0.03674584,175.06,175.03,0.0400425]
[1747884780869,5.711,175.05,175.03,0.0400425]
[1747884781068,0.03674584,175.06,175.03,0.0400425]
[1747884782268,5.7113,175.04,175.03,0.0400425]
[1747884788279,5.7111,175.05,175.03,0.0400425]
[1747884788573,0.03674584,175.06,175.03,0.0400425]
[1747884788777,0.03674584,175.06,175.04,6.60174742]
[1747884788977,1.9667,175.14,175.08,5.71]
[1747884789272,493.1,175.15,175.04,12.69484742]
[1747884789675,493.1,175.15,175.05,5.7107]
[1747884790072,0.04240359,175.12,175.08,0.04204111]
[1747884790476,5.7093,175.11,175.08,0.04204111]
[1747884790777,0.04240359,175.12,175.08,0.04204111]
[1747884791176,5.7095,175.1,175.08,0.04204111]
[1747884791374,0.04240359,175.12,175.08,0.04204111]
[1747884791679,151.24,175.11,175.08,0.04204111]
[1747884792579,5.7097,175.09,175.08,0.04204111]
[1747884794182,5.7094,175.1,175.08,0.04204111]
[1747884794983,5.7097,175.09,175.08,0.04204111]
[1747884795482,5.7094,175.1,175.08,0.04204111]
[1747884795684,0.04240359,175.12,175.08,0.04204111]
[1747884796281,5.7096,175.1,175.08,0.04204111]
[1747884797384,0.04240359,175.12,175.08,0.04204111]
[1747884797876,0.04240359,175.12,175.08,1.99034111]
[1747884798381,0.04240359,175.12,175.1,6.60174742]
[1747884798782,0.04240359,175.12,175.11,5.709]
[1747884799587,4.1024,175.22,175.16,5.7074]
[1747884799885,10.71302338,175.23,175.16,5.7074]
[1747884800077,151.2,175.24,175.13,6.60174742]
[1747884800078,5.7055,175.22,175.13,6.60174742]
[1747884800279,5.7055,175.22,175.14,2.0488]
[1747884800682,0.03938971,175.2,175.16,0.04166961]
[1747884803886,5.74548971,175.2,175.16,0.04166961]
[1747884804088,0.03938971,175.2,175.16,0.04166961]
[1747884804687,0.03938971,175.2,175.16,5.74896961]
[1747884804985,0.03938971,175.2,175.16,6.64341703]
[1747884805287,0.03938971,175.2,175.18,5.7065]
[1747884805591,0.03938971,175.2,175.16,6.64341703]
[1747884806985,151.16,175.3,175.19,6.60174742]
[1747884807183,151.16,175.3,175.2,1.9924]
[1747884807386,151.16,175.3,175.2,7.6985]
[1747884807982,0.03858302,175.27,175.23,0.03846972]
[1747884808985,5.7048,175.24,175.23,0.03846972]
[1747884810490,0.03858302,175.27,175.23,6.64021714]
[1747884810901,7.40723714,175.32,175.28,5.7033]
[1747884811200,7.40723714,175.32,175.29,6.60174742]
[1747884811896,7.44465694,175.32,175.31,5.7025]
[1747884812198,7.44465694,175.32,175.29,6.63798296]
[1747884812400,7.44465694,175.32,175.3,5.7028]
[1747884813194,7.44465694,175.32,175.31,5.7025]
[1747884815902,7.44465694,175.32,175.3,5.7028]
[1747884816704,5.6993,175.41,175.35,5.7009]
[1747884817001,1.9402,175.42,175.35,5.7009]
[1747884817202,650.56,175.43,175.35,5.7009]
[1747884817399,5.6997,175.4,175.35,5.7009]
[1747884817704,650.56,175.43,175.36,5.74318906]
[1747884818099,5.6995,175.41,175.36,5.74318906]
[1747884818305,650.56,175.43,175.36,5.74318906]
[1747884818503,650.56,175.43,175.36,0.04238906]
[1747884819705,5.6999,175.4,175.36,0.04238906]
[1747884820405,5.7001,175.39,175.36,0.04238906]
[1747884820707,650.56,175.43,175.36,0.04238906]
[1747884821010,5.6995,175.41,175.36,5.74308906]
[1747884822811,5.6996,175.4,175.36,5.74308906]
[1747884824107,5.6999,175.39,175.36,0.04238906]
[1747884824711,650.56,175.43,175.36,0.04238906]
[1747884825707,2.0211,175.42,175.36,0.04238906]
[1747884826009,650.56,175.43,175.36,0.04238906]
[1747884826615,5.7006,175.37,175.36,0.04238906]
[1747884827803,5.7023,175.32,175.28,2.1038]
[1747884828007,504.6978,175.43,175.23,493.22]
[1747884828202,108.38,175.39,175.24,265.56]
[1747884828513,2.0104,175.38,175.24,265.56]
[1747884828713,0.04003417,175.33,175.29,0.03898518]
[1747884829115,5.7029,175.3,175.29,0.03898518]
[1747884830015,5.7026,175.31,175.29,0.03898518]
[1747884831008,0.04003417,175.33,175.29,0.03898518]
[1747884831207,0.04003417,175.33,175.3,5.7026]
[1747884831408,0.04003417,175.33,175.29,0.03898518]
[1747884832206,5.74203417,175.33,175.29,0.03898518]
[1747884832517,0.04003417,175.33,175.29,0.03898518]
[1747884832716,5.7025,175.32,175.29,0.03898518]
[1747884832917,0.04003417,175.33,175.29,0.03898518]
[1747884834514,5.7023,175.32,175.29,0.03898518]
[1747884834715,0.04003417,175.33,175.29,0.03898518]
[1747884834914,0.04003417,175.33,175.31,5.7022]
[1747884835920,0.04003417,175.33,175.3,5.7027]
[1747884836116,0.04003417,175.33,175.29,0.03898518]
[1747884836618,5.74223417,175.33,175.29,5.74198518]
[1747884837126,0.04003417,175.33,175.29,0.03898518]
[1747884837427,0.04003417,175.33,175.3,5.7026]
[1747884838528,0.04003417,175.33,175.29,0.03898518]
[1747884840624,5.7025,175.32,175.29,0.03898518]
[1747884840822,0.04003417,175.33,175.29,0.03898518]
[1747884841025,156.12,175.45,175.32,6.58717889]
[1747884841731,156.12,175.45,175.34,5.7015]
[1747884842027,5.7002,175.39,175.34,5.7015]
[1747884842327,5.7002,175.39,175.38,0.03614689]
[1747884846722,5.6997,175.4,175.38,0.03614689]
[1747884847223,6.58717889,175.48,175.38,0.03614689]
[1747884847420,156.1,175.47,175.38,5.73634689]
[1747884848534,156.1,175.47,175.39,5.6999]
[1747884849233,156.1,175.47,175.38,0.03614689]
[1747884850339,5.6995,175.41,175.38,0.03614689]
[1747884850535,156.1,175.47,175.38,0.03614689]